bitfinex-derivatives/quotes_ETHF0:USTF0_20260128
["timestamp","ask_amount","ask_price","bid_price","bid_amount"]
[1769617757542,3.4789261,3018.2,3016.8,3.48394]
[1769617758048,3.4789261,3018.2,3016.8,3.48636893]
[1769617759335,3.4789261,3018.2,3016.8,3.32042893]
[1769617759941,3.4789261,3018.0,3016.4,0.16596]
[1769617760339,3.4789261,3018.0,3016.5,0.16595]
[1769617760540,3.4789261,3018.0,3016.7,3.87031579]
[1769617760740,3.4789261,3018.0,3017.1,0.16592]
[1769617760950,3.4789261,3018.0,3017.1,3.87425717]
[1769617761246,3.4789261,3018.9,3017.3,3.87027579]
[1769617761446,3.4789261,3018.7,3017.3,0.16591]
[1769617761651,3.4789261,3018.5,3017.1,0.00397138]
[1769617762348,3.4789261,3018.3,3017.1,0.00397138]
[1769617769559,9.03427217,3019.1,3015.9,3.71740373]
[1769617769560,3.40386459,3018.0,3015.9,3.71740373]
[1769617769756,3.40386459,3017.8,3016.4,3.71740373]
[1769617770052,3.40386459,3018.4,3016.8,3.88334373]
[1769617770259,3.40386459,3018.2,3016.8,3.88334373]
[1769617770460,3.40386459,3018.0,3016.8,0.1687827]
[1769617770652,3.47151744,3017.9,3016.3,0.16597]
[1769617770848,6.87553874,3017.8,3016.3,0.16597]
[1769617771053,3.40386459,3017.8,3016.3,0.16597]
[1769617771457,3.40386459,3017.8,3016.2,3.71740373]
[1769617771648,3.40386459,3017.8,3016.2,3.72004466]
[1769617772464,3.40386459,3017.8,3016.7,0.16594]
[1769617776677,3.40386459,3017.8,3016.2,3.88601466]
[1769617776873,3.40386459,3017.8,3016.3,3.88337373]
[1769617778674,3.40386459,3017.8,3016.4,0.16596]
[1769617779381,3.40386459,3017.6,3016.2,0.00264093]
[1769617779982,3.40386459,3017.6,3016.2,0.16861093]
[1769617780169,3.40386459,3017.6,3016.3,0.16597]
[1769617780373,3.40386459,3017.4,3016.3,0.16597]
[1769617782182,3.40386459,3017.2,3016.2,0.00264093]
[1769617783576,3.40386459,3017.2,3015.8,0.16599]
[1769617784585,3.40386459,3017.2,3015.8,0.16962568]
[1769617784983,3.40386459,3017.0,3015.8,0.00363568]
[1769617785186,3.40386459,3017.0,3016.0,3.71740373]
[1769617786186,3.40386459,3017.0,3016.0,3.88338373]
[1769617786385,3.40386459,3017.3,3016.1,3.71740373]
[1769617786586,3.40386459,3017.3,3016.3,3.88337373]
[1769617789186,3.40386459,3017.3,3016.3,0.16597]
[1769617791490,3.40386459,3017.3,3016.3,3.88337373]
[1769617793895,3.40386459,3017.6,3016.3,3.88337373]
[1769617794092,3.40386459,3017.6,3016.5,3.71740373]
[1769617794292,3.40386459,3017.6,3016.7,3.71740373]
[1769617794797,3.40386459,3018.0,3016.7,3.88335373]
[1769617794992,3.49354488,3017.8,3016.7,3.88335373]
[1769617796592,3.49354488,3017.8,3016.8,0.16594]
[1769617797192,3.49354488,3017.8,3016.8,3.84297459]
[1769617798798,3.49354488,3017.8,3016.8,0.16594]
[1769617800599,3.49354488,3017.8,3016.3,3.84300459]
[1769617800904,1.75059568,3018.0,3016.3,3.84300459]
[1769617800905,3.3796814,3017.6,3016.3,0.16597]
[1769617801099,3.3796814,3017.6,3016.0,3.67703459]
[1769617801303,46.04278476,3017.5,3016.1,0.16598]
[1769617801597,3.49215908,3017.4,3016.1,0.16598]
[1769617801803,40.8,3017.5,3016.1,0.16598]
[1769617802100,3.49213834,3017.4,3016.1,0.16598]
[1769617802301,40.8,3017.5,3016.1,0.16598]
[1769617802502,3.65821843,3017.4,3015.8,0.00363568]
[1769617802704,3.65821843,3017.3,3015.8,0.00363568]
[1769617802906,1.58471568,3016.5,3015.1,10.93678605]
[1769617803099,3.49354488,3016.3,3015.0,3.84307459]
[1769617803694,3.49354488,3016.3,3015.2,0.16603]
[1769617804000,3.49354488,3016.9,3015.7,3.84303459]
[1769617804301,3.49354488,3016.9,3015.8,3.84303459]
[1769617804504,3.49354488,3017.3,3016.2,3.84300459]
[1769617804905,3.49354488,3017.3,3016.2,0.16597]
[1769617805200,3.49649703,3017.3,3015.9,3.67703459]
[1769617805600,3.49354488,3017.1,3015.8,0.16599]
[1769617805998,2.08795215,3017.3,3015.6,3.67703459]
[1769617805999,3.49354488,3016.9,3015.6,3.67703459]
[1769617806198,3.49354488,3016.9,3015.3,0.16602]
[1769617806405,3.49354488,3016.7,3015.2,0.00285557]
[1769617806608,3.49354488,3016.5,3015.2,0.00285557]
[1769617806803,3.49354488,3016.3,3015.2,0.00285557]
[1769617807208,3.65952488,3016.1,3014.5,3.67703459]
[1769617807402,3.17947266,3015.9,3014.5,3.67703459]
[1769617807707,3.17947266,3015.9,3014.7,3.67703459]
[1769617807909,3.17947266,3015.9,3014.4,3.67703459]
[1769617808105,3.17947266,3015.9,3014.4,3.68061197]
[1769617808405,3.42671179,3015.7,3014.4,0.00357738]
[1769617808810,3.42671179,3015.7,3014.4,3.68061197]
[1769617809312,3.42671179,3015.4,3013.6,3.67703459]
[1769617809499,3.42671179,3015.4,3013.8,3.67703459]
[1769617810114,3.42671179,3015.4,3014.0,3.84312459]
[1769617810405,44.22209763,3015.9,3014.4,3.67703459]
[1769617810599,3.42209763,3016.4,3014.7,3.84308459]
[1769617810800,3.42209763,3016.2,3014.7,3.84308459]
[1769617811204,3.42209763,3015.9,3014.7,3.84308459]
[1769617811911,3.42209763,3015.9,3014.7,0.16605]
[1769617812104,3.42209763,3015.9,3014.3,3.67703459]
[1769617812807,5.208,3016.2,3014.0,2.11720564]
[1769617812808,3.48787213,3015.4,3014.0,0.00411564]
[1769617813004,3.48787213,3015.4,3014.0,3.68115023]
[1769617813408,3.48787213,3015.4,3014.0,0.00411564]
[1769617813710,5.208,3016.2,3014.0,3.68115023]
[1769617813711,3.49354488,3015.9,3014.0,3.68115023]
[1769617813913,3.49354488,3016.1,3014.6,3.67703459]
[1769617814415,3.49354488,3015.8,3014.2,3.67703459]
[1769617814613,3.49354488,3015.8,3014.0,3.84724023]
[1769617815008,40.8,3016.3,3014.0,3.84724023]
[1769617815009,3.49354488,3016.2,3014.4,3.84310459]
[1769617815209,3.49354488,3016.2,3014.7,0.16605]
[1769617815515,3.49354488,3016.6,3015.0,3.84307459]
[1769617818811,3.49354488,3016.6,3015.2,3.67703459]
[1769617819013,44.29354488,3017.0,3015.5,3.84304459]
[1769617819416,3.49354488,3017.0,3015.7,3.67703459]
[1769617819916,3.49085568,3017.3,3015.9,3.67703459]
[1769617820915,3.47713371,3017.2,3015.9,3.67703459]
[1769617821120,3.47713371,3017.1,3015.9,3.67703459]
[1769617821417,0.00295215,3017.3,3015.9,3.67703459]
[1769617821606,3.47728113,3017.2,3015.9,3.67703459]
[1769617821806,3.47728113,3017.1,3015.9,3.67703459]
[1769617822013,0.00295215,3017.3,3015.9,3.67703459]
[1769617822213,3.47726269,3017.2,3016.1,3.67703459]
[1769617822407,0.00295215,3017.3,3016.2,0.16597]
[1769617822615,0.00295215,3017.3,3016.3,3.84300459]
[1769617823408,3.59354488,3018.3,3016.9,3.67703459]
[1769617823611,3.47667695,3018.2,3016.9,3.67703459]
[1769617823812,3.47667695,3018.1,3016.9,3.67703459]
[1769617824013,3.47667695,3018.0,3016.9,3.67703459]
[1769617824210,40.8,3018.2,3016.9,3.67703459]
[1769617824412,3.47616154,3018.1,3016.9,3.67703459]
[1769617824612,3.47616154,3018.0,3016.9,3.67703459]
[1769617824814,0.00263202,3018.2,3016.9,3.67703459]
[1769617825118,3.47615967,3018.1,3016.9,3.67703459]
[1769617825425,3.59764776,3017.9,3016.9,3.67703459]
[1769617825724,3.59764776,3017.9,3016.9,3.57703459]
[1769617825914,3.47592846,3017.8,3016.9,3.57703459]
[1769617826215,3.59764776,3017.9,3016.9,3.57703459]
[1769617826417,0.00263202,3018.2,3016.9,3.57703459]
[1769617826624,3.47564866,3018.1,3016.9,3.57703459]
[1769617826919,3.47564866,3018.0,3016.9,3.57703459]
[1769617827118,2.47636688,3019.1,3017.2,1.58471568]
[1769617827320,3.45728375,3020.1,3017.7,1.58471568]
[1769617827525,6.93066332,3020.0,3018.4,3.36765608]
[1769617827829,6.93066332,3019.9,3018.4,3.36765608]
[1769617828022,6.93066332,3019.8,3018.4,3.37147066]
[1769617828327,3.45728375,3019.8,3018.4,0.00381458]
[1769617828823,3.45728375,3019.5,3017.6,3.53354608]
[1769617829025,3.45728375,3019.3,3017.6,3.53354608]
[1769617829218,3.45728375,3019.0,3017.6,3.36765608]
[1769617829519,3.45728375,3019.0,3016.4,1.58471568]
[1769617829520,3.45728375,3019.0,3017.1,3.36765608]
[1769617829826,3.45728375,3019.0,3017.3,3.36765608]
[1769617830425,3.45728375,3019.0,3017.3,3.53356608]
[1769617830620,3.45728375,3019.0,3017.5,3.53355608]
[1769617830816,3.45728375,3019.3,3017.7,3.36765608]
[1769617831124,3.45728375,3019.3,3018.0,3.36765608]
[1769617831325,3.45728375,3019.3,3018.0,3.53352608]
[1769617832722,3.45728375,3019.7,3018.4,3.36765608]
[1769617833322,3.45728375,3019.7,3018.4,3.53350608]
[1769617834226,3.45728375,3019.7,3018.5,3.53350608]
[1769617835530,0.00377006,3019.9,3018.6,0.16584]
[1769617835728,0.00377006,3019.9,3018.7,3.36765608]
[1769617840731,3.46105381,3019.9,3018.6,0.16584]
[1769617841029,3.45728375,3019.4,3018.4,3.36765608]
[1769617841530,3.45728375,3019.4,3018.0,3.36765608]
[1769617843531,3.45728375,3019.8,3018.6,3.36765608]
[1769617843734,3.45728375,3019.8,3018.8,3.36765608]
[1769617843930,0.00377006,3019.9,3018.8,3.36765608]
[1769617844737,0.00377006,3019.9,3018.8,3.53348608]
[1769617846632,5.45728375,3020.4,3019.1,3.36765608]
[1769617846839,3.45728375,3020.3,3019.1,3.36765608]
[1769617847537,3.45728375,3020.3,3019.0,0.16582]
[1769617847838,1.58471568,3020.0,3018.8,3.36765608]
[1769617848034,3.45728375,3019.9,3018.8,3.36765608]
[1769617849143,3.45728375,3019.9,3018.3,3.36765608]
[1769617849334,3.45728375,3019.4,3018.3,3.36765608]
[1769617849930,3.45728375,3019.4,3018.0,3.36765608]
[1769617850336,3.45728375,3019.4,3017.6,0.1659]
[1769617850337,3.45728375,3018.9,3017.6,0.1659]
[1769617850537,3.45728375,3018.9,3016.9,0.16593]
[1769617850744,1.58471568,3019.0,3016.3,5.87935247]
[1769617850745,3.45728375,3018.7,3017.2,3.36765608]
[1769617852033,3.45728375,3018.7,3017.4,3.53355608]
[1769617852241,3.45728375,3019.3,3017.8,3.53354608]
[1769617852744,44.25728375,3019.2,3017.8,3.53354608]
[1769617852941,44.25728375,3019.2,3017.1,0.00245128]
[1769617852942,3.45728375,3020.1,3018.7,3.36765608]
[1769617853251,12.91780338,3020.4,3018.1,1.58471568]
[1769617853252,5.45728375,3020.4,3019.0,3.53347608]
[1769617853847,3.46040389,3020.3,3019.0,3.53347608]
[1769617854248,3.46040389,3020.3,3019.0,3.36765608]
[1769617855243,3.46040389,3020.3,3018.6,0.16584]
[1769617855244,3.4998735,3019.9,3018.6,3.75044124]
[1769617856445,3.4998735,3019.9,3018.6,3.58460124]
[1769617856647,3.4998735,3019.4,3018.1,3.58460124]
[1769617857643,3.4998735,3019.4,3017.8,0.16589]
[1769617857644,3.4998735,3019.2,3017.8,0.16589]
[1769617857841,3.4998735,3019.2,3017.1,0.00245128]
[1769617857842,3.4998735,3018.9,3017.3,3.75051124]
[1769617858243,3.4998735,3018.7,3017.3,3.75051124]
[1769617860345,3.4998735,3018.4,3017.3,3.75051124]
[1769617860650,3.4998735,3018.4,3017.1,0.00245128]
[1769617860838,3.4998735,3018.4,3017.1,3.58705252]
[1769617863958,3.4998735,3018.2,3017.1,0.00245128]
[1769617864149,3.42989048,3018.1,3016.7,6.90160124]
[1769617864349,3.4998735,3018.0,3016.7,6.90160124]
[1769617865045,3.4998735,3018.0,3016.7,3.317]
[1769617865245,3.4998735,3018.0,3016.3,3.58460124]
[1769617865246,3.4998735,3017.8,3016.3,3.58460124]
[1769617865444,3.4998735,3017.8,3016.5,3.58460124]
[1769617865648,0.00393624,3018.0,3017.1,3.58460124]
[1769617865844,0.00393624,3018.0,3017.1,3.75052124]
[1769617866256,0.00393624,3018.0,3017.1,3.7535022]
[1769617867552,0.00393624,3018.0,3017.3,3.58460124]
[1769617867958,0.00144045,3018.0,3017.3,3.58460124]
[1769617868656,0.00144045,3018.0,3017.3,3.75051124]
[1769617868856,3.4998735,3018.8,3017.5,3.58460124]
[1769617869360,3.4998735,3018.8,3017.5,3.75050124]
[1769617869859,3.50300982,3018.8,3017.5,3.75050124]
[1769617870462,3.50300982,3018.8,3017.5,3.58460124]
[1769617871052,3.4998735,3018.6,3017.2,3.58460124]
[1769617871357,3.4998735,3018.6,3017.1,0.16890096]
[1769617871358,3.4998735,3018.4,3017.1,0.16890096]
[1769617871558,3.42432237,3018.3,3017.1,0.00298096]
[1769617871762,0.16584,3018.6,3017.1,0.00298096]
[1769617871763,3.4998735,3018.2,3017.1,0.00298096]
[1769617872060,3.4998735,3018.2,3016.6,0.16595]
[1769617872061,3.6657435,3018.2,3016.6,3.75055124]
[1769617872262,3.4998735,3018.0,3016.6,3.75055124]
[1769617872456,3.4998735,3018.0,3016.9,3.58460124]
[1769617872759,3.4998735,3018.5,3016.9,3.75054124]
[1769617872960,3.4998735,3018.3,3016.9,3.75441623]
[1769617873162,3.4998735,3018.1,3016.9,3.75441623]
[1769617875265,3.6657435,3018.1,3016.9,0.00387499]
[1769617876572,3.6657435,3018.1,3016.6,3.58460124]
[1769617876772,3.4998735,3017.9,3016.6,3.58460124]
[1769617876969,3.4998735,3017.9,3016.5,3.318]
[1769617876970,3.4998735,3017.7,3016.1,3.58460124]
[1769617877170,5.175,3018.5,3016.0,0.16598]
[1769617877171,3.6657735,3017.5,3016.0,0.16598]
[1769617877473,3.4998735,3017.3,3016.0,0.16916123]
[1769617878272,3.4998735,3017.3,3016.0,0.00318123]
[1769617878575,3.6657935,3017.3,3016.0,0.00318123]
[1769617879275,3.4998735,3017.3,3016.0,3.75376247]
[1769617879664,3.4998735,3017.3,3016.0,0.16916123]
[1769617881070,3.4998735,3017.3,3016.0,0.00318123]
[1769617881378,3.6657835,3017.3,3016.0,0.00318123]
[1769617881673,3.4998735,3017.1,3015.3,3.58460124]
[1769617882273,3.4998735,3017.1,3015.3,3.75062124]
[1769617882770,3.4998735,3016.9,3015.3,0.16997185]
[1769617883370,3.4998735,3016.9,3015.3,3.75457309]
[1769617885768,3.4998735,3016.9,3015.3,3.58855309]
[1769617885981,3.70086908,3016.6,3015.3,0.00395185]
[1769617886277,3.70511228,3016.6,3015.3,0.00395185]
[1769617887780,0.0042432,3016.6,3015.3,3.59636936]
[1769617887971,0.0042432,3016.6,3015.5,3.59241751]
[1769617890770,3.42423065,3016.6,3015.4,0.16601]
[1769617891170,3.42423065,3016.6,3015.3,0.00395185]
[1769617893683,3.49671469,3016.5,3015.3,0.00395185]
[1769617893874,3.41998745,3016.4,3015.3,0.00395185]
[1769617894777,3.41998745,3016.4,3014.9,3.318]
[1769617894984,3.41998745,3016.1,3014.6,3.59241751]
[1769617895176,40.8,3016.0,3014.4,0.16607]
[1769617895482,3.41998745,3015.9,3014.3,3.59241751]
[1769617895879,3.41998745,3015.9,3014.5,3.59241751]
[1769617896482,3.58597745,3015.9,3014.3,0.00351332]
[1769617896680,3.41998745,3015.7,3013.8,3.75851751]
[1769617896887,42.38438074,3016.0,3013.8,3.75851751]
[1769617896888,3.41998745,3015.4,3013.8,0.1661]
[1769617897077,3.41998745,3015.4,3013.8,3.75851751]
[1769617897784,3.41998745,3015.4,3013.8,3.76088478]
[1769617898176,3.41998745,3015.4,3013.8,0.16846727]
[1769617898372,3.41998745,3015.4,3013.8,3.76088478]
[1769617898777,3.41998745,3015.2,3013.8,0.00236727]
[1769617899792,3.41998745,3014.6,3013.0,3.75856751]
[1769617899991,3.41998745,3014.6,3013.1,0.16614]
[1769617900283,3.41998745,3015.3,3013.4,3.59241751]
[1769617900491,1.75040074,3015.4,3013.4,3.59241751]
[1769617900492,3.41998745,3015.1,3013.4,3.59241751]
[1769617900886,3.41998745,3015.1,3013.4,3.59474389]
[1769617901082,3.41998745,3015.1,3013.4,3.76087389]
[1769617901387,3.41998745,3015.1,3013.6,3.75853751]
[1769617902386,3.41998745,3015.1,3013.8,3.59241751]
[1769617902585,3.41998745,3015.7,3013.8,3.75851751]
[1769617902780,3.41998745,3015.5,3013.8,3.75851751]
[1769617904483,3.41998745,3015.3,3013.8,3.75851751]
[1769617904992,3.41998745,3015.3,3013.8,0.1661]
[1769617905883,3.41998745,3015.3,3013.4,3.59474389]
[1769617906084,3.41998745,3015.1,3013.4,3.59474389]
[1769617906291,3.41998745,3014.9,3013.4,3.59474389]
[1769617906487,3.41998745,3014.9,3013.4,0.00232638]
[1769617907289,3.41998745,3014.6,3013.4,0.00232638]
[1769617907588,3.41998745,3014.6,3013.4,3.59474389]
[1769617908089,3.41998745,3014.6,3013.6,3.59241751]
[1769617908494,3.41998745,3014.6,3013.5,0.16612]
[1769617908685,3.41998745,3014.6,3013.4,0.00232638]
[1769617910690,3.41998745,3014.6,3012.8,3.32]
[1769617910890,5.258,3014.9,3012.8,3.32]
[1769617910891,3.41998745,3014.2,3012.8,3.32]
[1769617911690,3.41998745,3014.0,3012.8,0.00290698]
[1769617912092,3.41998745,3013.6,3012.4,1.94197318]
[1769617912288,3.58610745,3013.6,3012.4,1.94197318]
[1769617912499,3.58611745,3013.4,3011.6,3.59241751]
[1769617912697,3.41998745,3013.2,3011.6,3.59241751]
[1769617912903,3.6871182,3013.2,3011.6,3.59241751]
[1769617913199,3.6871182,3013.2,3011.6,0.00281428]
[1769617913200,3.41998745,3013.0,3011.6,0.00281428]
[1769617914096,3.41998745,3012.8,3011.2,3.59241751]
[1769617914302,3.41998745,3012.6,3011.0,0.61909172]
[1769617914494,3.41998745,3012.4,3011.0,0.61909172]
[1769617914894,3.46659915,3012.7,3011.7,3.60398335]
[1769617915201,3.46659915,3013.5,3011.7,3.60679153]
[1769617915399,3.46659915,3013.3,3011.7,3.60679153]
[1769617915596,3.46659915,3013.3,3011.7,0.00280818]
[1769617916304,3.46659915,3013.2,3011.7,3.60679153]
[1769617917200,3.46659915,3013.2,3011.7,0.00280818]
[1769617917392,3.46659915,3013.2,3011.7,3.60679153]
[1769617918000,40.8,3013.4,3011.7,3.60679153]
[1769617918301,40.8,3013.4,3012.0,3.60398335]
[1769617918302,3.46659915,3013.3,3012.0,3.60398335]
[1769617919190,3.46659915,3013.3,3011.9,0.16621]
[1769617919704,3.46659915,3013.3,3011.7,3.60679153]
[1769617920002,3.63273915,3013.3,3011.7,0.00280818]
[1769617920400,3.46659915,3013.1,3011.7,0.00280818]
[1769617920605,3.64315142,3013.2,3011.7,0.00280818]
[1769617920606,3.46659915,3012.9,3011.7,0.00280818]
[1769617920794,3.46659915,3012.7,3011.7,0.00280818]
[1769617921307,3.46659915,3012.7,3011.0,4.22307507]
[1769617921508,3.46659915,3012.7,3011.0,0.61909172]
[1769617921808,3.63276915,3012.7,3011.0,0.61909172]
[1769617922108,3.46659915,3012.5,3011.0,4.22307507]
[1769617922305,3.46659915,3012.5,3011.0,4.22571458]
[1769617922497,3.46659915,3012.5,3011.2,3.77023335]
[1769617923808,3.46659915,3012.5,3011.0,0.62173123]
[1769617923809,3.46659915,3013.1,3011.5,3.60398335]
[1769617923996,3.46659915,3013.2,3011.5,3.60398335]
[1769617924197,3.46659915,3013.2,3011.1,1.59013299]
[1769617924198,3.46659915,3013.2,3011.8,3.60398335]
[1769617925506,3.46659915,3013.6,3011.9,0.16621]
[1769617925695,3.46659915,3013.5,3012.0,3.77018335]
[1769617926206,3.46659915,3014.0,3012.2,3.77017335]
[1769617926410,3.46659915,3013.8,3012.2,3.77017335]
[1769617926605,3.46659915,3013.6,3012.2,3.77017335]
[1769617929798,3.46659915,3013.6,3012.2,0.16619]
[1769617930498,3.46659915,3013.6,3011.6,3.93081335]
[1769617930705,3.46659915,3013.1,3011.6,3.93081335]
[1769617931009,3.46659915,3013.1,3011.8,3.60398335]
[1769617931609,3.46659915,3013.1,3012.0,3.60398335]
[1769617932105,4.87713299,3013.7,3012.0,3.60398335]
[1769617932313,3.46659915,3013.5,3012.0,3.60398335]
[1769617932514,7.02244774,3013.4,3012.0,3.60398335]
[1769617932713,3.46659915,3013.3,3012.0,3.60398335]
[1769617933609,3.46659915,3013.1,3011.6,3.76458335]
[1769617933807,3.46659915,3013.1,3011.6,3.93081335]
[1769617934007,3.46659915,3013.1,3011.6,0.1606]
[1769617934312,3.46659915,3012.9,3011.6,0.1606]
[1769617934515,1.75627299,3013.2,3011.6,0.1606]
[1769617934516,3.46659915,3012.7,3011.6,0.1606]
[1769617934710,3.46659915,3013.4,3011.9,3.60398335]
[1769617934907,41.23648769,3013.9,3011.9,3.60398335]
[1769617934908,3.46659915,3013.2,3011.9,3.60398335]
[1769617935410,3.46659915,3013.2,3011.9,3.77019335]
[1769617938006,3.46659915,3013.7,3011.9,3.60398335]
[1769617938212,3.46950245,3014.2,3012.8,3.77014335]
[1769617938518,7.04966931,3014.1,3012.8,3.77014335]
[1769617938718,3.58307016,3014.0,3012.8,3.77014335]
[1769617938922,3.58307016,3014.0,3013.0,3.60398335]
[1769617939109,0.0029033,3014.2,3013.0,3.77013335]
[1769617939920,3.46950245,3014.2,3013.0,3.77013335]
[1769617940110,3.46950245,3014.2,3013.0,0.16615]
[1769617940313,3.46950245,3014.2,3013.0,3.77013335]
[1769617940314,3.58528183,3014.1,3013.0,3.77013335]
[1769617940618,0.0029033,3014.2,3013.3,3.60398335]
[1769617940914,0.0029033,3014.2,3013.3,3.77359433]
[1769617944521,3.46659915,3014.9,3013.7,3.60398335]
[1769617944707,3.58203007,3014.8,3013.7,3.60398335]
[1769617944908,3.46659915,3014.9,3013.7,3.60398335]
[1769617945113,3.58198751,3014.8,3013.7,3.60398335]
[1769617945414,3.46659915,3014.9,3013.7,3.60398335]
[1769617945609,3.46949074,3014.9,3013.7,3.60398335]
[1769617946722,3.46949074,3014.9,3013.7,3.77009335]
[1769617947320,3.46949074,3014.9,3013.7,0.16611]
[1769617947625,3.46949074,3014.9,3013.4,3.35902059]
[1769617948716,3.67713072,3014.5,3013.3,0.16961098]
[1769617948917,3.67713072,3014.5,3013.3,3.52863157]
[1769617949622,3.67713072,3014.5,3013.4,0.16613]
[1769617949824,3.67713072,3014.5,3013.4,3.52515059]
[1769617951027,3.67713072,3014.5,3013.4,3.68575059]
[1769617952931,3.67713072,3014.8,3013.8,3.35902059]
[1769617954322,3.67713072,3014.8,3013.7,0.16611]
[1769617954535,1.59013299,3014.6,3013.4,0.1606]
[1769617954725,3.67713072,3014.5,3013.4,0.1606]
[1769617956436,3.67713072,3014.5,3012.9,3.35902059]
[1769617956632,3.67713072,3014.0,3012.9,3.35902059]
[1769617956829,3.67713072,3014.0,3012.8,0.16616]
[1769617957537,3.67713072,3014.0,3012.8,3.52818235]
[1769617957927,3.67713072,3014.0,3012.8,0.16916176]
[1769617958725,3.51903199,3013.9,3012.2,5.43819]
[1769617958925,3.67713072,3013.8,3012.2,3.48919]
[1769617959833,3.67713072,3013.5,3012.2,3.49249221]
[1769617960035,3.67713072,3013.5,3012.2,0.00330221]
[1769617960736,5.287,3013.8,3011.5,3.52525059]
[1769617960737,3.67713072,3013.0,3011.5,3.52525059]
[1769617961130,3.67713072,3013.0,3011.5,0.16623]
[1769617961731,3.67713072,3013.0,3011.5,0.00320762]
[1769617962237,1.59013299,3012.6,3011.5,0.00320762]
[1769617962430,3.67713072,3012.5,3011.5,0.00320762]
[1769617962628,3.67713072,3012.5,3011.2,3.322]
[1769617963231,3.67713072,3012.3,3011.2,3.322]
[1769617963939,3.67713072,3012.3,3011.0,0.61909172]
[1769617964139,1.59013299,3012.1,3011.0,0.61909172]
[1769617964330,3.67713072,3012.0,3011.0,0.61909172]
[1769617964938,3.67713072,3012.0,3011.0,0.62221741]
[1769617968933,3.67713072,3012.0,3011.0,3.981238]
[1769617969935,1.59411325,3012.6,3011.0,4.147498]
[1769617969936,3.67713072,3012.3,3011.0,4.147498]
[1769617970133,3.67713072,3012.3,3011.2,3.35902059]
[1769617970336,3.68111098,3012.6,3011.4,3.35902059]
[1769617973043,0.00398026,3012.6,3011.4,3.35902059]
[1769617973341,0.00398026,3012.6,3011.6,3.35902059]
[1769617974235,0.00398026,3012.6,3011.2,3.35902059]
[1769617974236,3.68111098,3012.6,3011.2,3.35902059]
[1769617974443,3.68111098,3012.6,3011.2,3.52527059]
[1769617974633,3.68111098,3012.6,3011.4,3.35902059]
[1769617975229,3.68111098,3012.6,3011.6,3.60349957]
[1769617975645,3.68111098,3012.6,3011.5,0.16623]
[1769617977050,5.27124397,3012.6,3011.0,0.62221741]
[1769617977251,3.42303766,3012.5,3011.0,0.62221741]
[1769617977536,3.42303766,3012.4,3011.0,0.62221741]
[1769617977742,3.58921766,3012.4,3011.0,0.62221741]
[1769617979240,3.513,3012.5,3009.7,1.59013299]
[1769617979241,3.42303766,3012.0,3010.2,3.60349957]
[1769617980442,3.42303766,3012.0,3010.2,3.60664955]
[1769617980636,3.42303766,3011.7,3010.2,0.00314998]
[1769617980841,40.8,3012.3,3009.5,3.60349957]
[1769617980842,3.42303766,3011.0,3009.5,3.60349957]
[1769617981845,3.42303766,3011.0,3009.9,3.60349957]
[1769617983043,3.42303766,3011.0,3009.8,0.16633]
[1769617984147,3.42303766,3011.0,3009.9,0.16632]
[1769617984349,3.42303766,3011.4,3010.2,3.60349957]
[1769617984641,3.42303766,3011.4,3010.2,0.1663]
[1769617985744,3.42303766,3011.4,3010.2,3.76979957]
[1769617986040,3.42303766,3011.6,3010.2,3.76979957]
[1769617986240,3.42303766,3011.6,3010.5,3.76977957]
[1769617988555,3.42303766,3011.9,3010.6,3.60349957]
[1769617988745,3.42303766,3012.3,3010.9,3.60349957]
[1769617989045,3.42303766,3012.3,3011.0,0.16626]
[1769617989247,3.42303766,3012.1,3010.4,0.16629]
[1769617989447,3.42303766,3012.1,3010.5,0.16628]
[1769617989750,3.42303766,3012.1,3010.6,0.16628]
[1769617990048,3.42303766,3011.9,3010.6,0.16628]
[1769617990754,3.42303766,3011.9,3010.6,3.76977957]
[1769617991956,3.42303766,3011.9,3010.6,0.16628]
[1769617992748,3.42303766,3011.7,3010.0,3.60349957]
[1769617993253,3.42303766,3011.7,3010.3,3.60349957]
[1769617993450,3.42303766,3011.7,3010.7,3.76977957]
[1769617993751,3.42303766,3012.3,3010.8,3.76976957]
[1769617993951,3.42303766,3012.1,3010.8,3.76976957]
[1769617994143,3.42303766,3011.9,3010.8,0.16627]
[1769617994744,3.42303766,3011.9,3010.9,3.76975957]
[1769617994954,3.42303766,3011.9,3010.9,0.16626]
[1769617995353,3.42303766,3011.9,3010.4,0.16629]
[1769617996651,3.42303766,3011.7,3010.4,0.16629]
[1769617996860,3.42303766,3011.7,3009.9,3.60349957]
[1769617997052,3.42303766,3011.7,3010.1,0.16631]
[1769617997256,3.42303766,3011.7,3010.2,3.76979957]
[1769617997458,3.42303766,3011.7,3010.6,3.76977957]
[1769617997850,3.42303766,3011.7,3010.7,0.16628]
[1769617998356,3.42303766,3011.7,3011.0,0.61909172]
[1769617999450,3.42303766,3011.7,3010.7,0.16628]
[1769618000547,3.42303766,3012.0,3010.9,3.60349957]
[1769618000752,3.42303766,3012.0,3011.1,3.60349957]
[1769618000958,3.42303766,3012.4,3011.1,3.60349957]
[1769618001257,3.53854612,3012.3,3011.1,3.60349957]
[1769618001561,3.42303766,3012.4,3011.1,3.60349957]
[1769618001758,3.42303766,3012.2,3010.0,3.60349957]
[1769618001959,3.42303766,3012.2,3010.8,3.60349957]
[1769618002268,3.42303766,3012.2,3011.1,3.60349957]
[1769618002964,3.42303766,3012.2,3011.1,3.76974957]
[1769618003458,3.42303766,3012.2,3011.1,0.16625]
[1769618003761,3.42303766,3012.2,3011.1,3.76974957]
[1769618004566,3.42303766,3012.5,3011.3,3.76973957]
[1769618004757,3.42303766,3012.5,3010.2,6.471]
[1769618004758,3.54131627,3012.4,3011.5,3.69807096]
[1769618004958,0.00398026,3012.6,3011.8,0.16622]
[1769618005158,0.00398026,3012.6,3011.8,3.86837242]
[1769618007171,0.00398026,3012.6,3011.9,3.83312471]
[1769618007873,3.65115383,3013.1,3011.9,3.83312471]
[1769618008073,7.19100644,3013.0,3011.9,3.83312471]
[1769618008367,3.65115383,3013.0,3011.9,3.83312471]
[1769618008768,3.6543694,3013.0,3012.1,0.1662]
[1769618008974,0.00321557,3013.0,3012.1,3.83311471]
[1769618009474,3.6543694,3013.0,3011.8,0.00408146]
[1769618010767,3.65115383,3012.8,3011.0,10.30417471]
[1769618011075,3.65115383,3012.6,3011.1,3.83316471]
[1769618011274,3.65115383,3012.6,3011.2,3.83316471]
[1769618011475,3.65115383,3012.6,3011.3,0.16624]
[1769618011877,3.65115383,3012.6,3011.3,0.16961148]
[1769618013572,3.65115383,3012.4,3010.9,0.16627]
[1769618013773,3.65115383,3012.2,3010.4,3.66691471]
[1769618013973,3.52937039,3012.1,3010.4,3.66691471]
[1769618014173,3.65115383,3012.0,3010.4,3.66691471]
[1769618014581,0.16619,3012.3,3010.4,3.66691471]
[1769618014582,3.65115383,3011.8,3010.4,3.67001037]
[1769618014988,3.65115383,3011.7,3010.4,3.67001037]
[1769618015289,3.65115383,3011.7,3010.4,0.00309566]
[1769618015891,3.65115383,3011.5,3010.4,0.00309566]